lending/lending_fUSD_20241214
["ID","MTS","AMOUNT","RATE_DAILY","PERIOD"]
[345282434,1734137435589,-500.0,0.0002108,2]
[345282435,1734137435599,-222.475,0.00021093,2]
[345282436,1734137435609,-1725.682,0.00021095,2]
[345282437,1734137435618,-500.0,0.00021095,2]
[345282438,1734137435627,-186.47115265,0.00021095,2]
[345282439,1734137435637,-500.0,0.00021095,2]
[345282440,1734137435646,-500.0,0.00021095,2]
[345282441,1734137435655,-500.0,0.00021095,2]
[345282442,1734137435665,-500.0,0.00021095,2]
[345282443,1734137435674,-500.0,0.00021095,2]
[345282444,1734137435683,-537.62,0.00021095,2]
[345282445,1734137435692,-500.0,0.00021095,2]
[345282446,1734137435701,-205.44,0.00021095,2]
[345282447,1734137435710,-500.0,0.00021095,3]
[345282448,1734137435720,-500.0,0.00021095,3]
[345282449,1734137435729,-500.0,0.00021095,3]
[345282450,1734137435739,-500.0,0.00021095,3]
[345282451,1734137435748,-500.0,0.00021095,3]
[345282452,1734137435757,-500.0,0.00021095,3]
[345282453,1734137435766,-520.41574437,0.00021095,3]
[345282454,1734137435775,-496.30293132,0.00021095,3]
[345282455,1734137435785,-500.0,0.00021095,3]
[345282456,1734137435794,-500.0,0.00021095,3]
[345282457,1734137435804,-500.0,0.00021095,3]
[345282458,1734137435813,-500.0,0.00021095,3]
[345282459,1734137435824,-500.0,0.00021095,3]
[345282460,1734137435834,-500.0,0.00021095,3]
[345282461,1734137435843,-500.0,0.00021095,3]
[345282462,1734137435852,-500.0,0.00021095,3]
[345282463,1734137435862,-500.0,0.00021095,3]
[345282464,1734137435871,-466.37141203,0.00021095,3]
[345282465,1734137435880,-500.0,0.00021095,3]
[345282466,1734137435889,-500.0,0.00021095,3]
[345282467,1734137435898,-500.0,0.00021095,3]
[345282468,1734137435908,-500.0,0.00021095,3]
[345282469,1734137435917,-500.0,0.00021095,3]
[345282470,1734137435926,-500.0,0.00021095,3]
[345282471,1734137435935,-500.0,0.00021095,3]
[345282472,1734137435944,-626.76,0.00021095,3]
[345282473,1734137435953,-500.0,0.00021095,3]
[345282474,1734137435963,-500.0,0.00021095,3]
[345282475,1734137435974,-500.0,0.00021095,3]
[345282476,1734137435983,-500.0,0.00021095,3]
[345282477,1734137435993,-579.54,0.00021095,3]
[345282478,1734137436003,-500.0,0.00021095,3]
[345282479,1734137436013,-500.0,0.00021095,3]
[345282480,1734137436022,-500.0,0.00021095,3]
[345282481,1734137436031,-500.0,0.00021095,3]
[345282482,1734137436041,-500.0,0.00021095,3]
[345282483,1734137436050,-500.0,0.00021095,3]
[345282484,1734137436060,-500.0,0.00021095,3]
[345282485,1734137436071,-500.0,0.00021095,3]
[345282486,1734137436080,-500.0,0.00021095,3]
[345282487,1734137436089,-611.1705353,0.00021095,3]
[345282488,1734137436099,-500.0,0.00021095,3]
[345282489,1734137436108,-500.0,0.00021095,3]
[345282490,1734137436118,-500.0,0.00021095,3]
[345282491,1734137436127,-500.0,0.00021095,3]
[345282492,1734137436137,-183.0,0.00021095,3]
[345282493,1734137436146,-877.63,0.00021095,3]
[345282494,1734137436156,-500.0,0.00021095,3]
[345282495,1734137436165,-500.0,0.00021095,3]
[345282496,1734137436175,-500.0,0.00021095,3]
[345282497,1734137436184,-500.0,0.00021095,3]
[345282498,1734137436193,-500.0,0.00021095,3]
[345282499,1734137436202,-500.0,0.00021095,3]
[345282500,1734137436212,-500.0,0.00021095,3]
[345282501,1734137436220,-403.64,0.00021095,3]
[345282502,1734137436231,-630.30883246,0.00021095,3]
[345282503,1734137436241,-571.69,0.00021095,3]
[345282504,1734137436251,-500.0,0.00021095,3]
[345282505,1734137436260,-641.09,0.00021095,3]
[345282506,1734137436273,-500.0,0.00021095,3]
[345282507,1734137436282,-526.41305552,0.00021095,3]
[345282508,1734137436292,-500.0,0.00021095,3]
[345282509,1734137436301,-500.0,0.00021095,3]
[345282510,1734137436311,-500.0,0.00021095,3]
[345282511,1734137436322,-500.0,0.00021095,3]
[345282512,1734137436332,-500.0,0.00021095,3]
[345282513,1734137436341,-500.0,0.00021095,3]
[345282514,1734137436352,-500.0,0.00021095,3]
[345282515,1734137436362,-500.0,0.00021095,3]
[345282516,1734137436372,-500.0,0.00021095,3]
[345282517,1734137436381,-500.0,0.00021095,3]
[345282518,1734137436390,-500.0,0.00021095,3]
[345282519,1734137436399,-500.0,0.00021095,3]
[345282520,1734137436409,-500.0,0.00021095,3]
[345282521,1734137436418,-500.0,0.00021095,3]
[345282522,1734137436427,-320.72822842,0.00021095,3]
[345282523,1734137436436,-500.0,0.00021095,3]
[345282524,1734137436446,-500.0,0.00021095,3]
[345282525,1734137436455,-500.0,0.00021095,3]
[345282526,1734137436465,-500.0,0.00021095,3]
[345282527,1734137436474,-500.0,0.00021095,3]
[345282528,1734137436484,-500.0,0.00021095,3]
[345282529,1734137436493,-171.85,0.00021095,3]
[345282530,1734137436504,-227.28,0.00021095,3]
[345282531,1734137436514,-185.7858959,0.00021095,3]
[345282532,1734137436523,-1289.92,0.00021095,3]
[345282533,1734137436531,-500.0,0.00021095,3]
[345282534,1734137436541,-500.0,0.00021095,3]
[345282535,1734137436552,-500.0,0.00021095,3]
[345282536,1734137436563,-500.0,0.00021095,3]
[345282537,1734137436574,-500.0,0.00021095,3]
[345282538,1734137436583,-500.0,0.00021095,3]
[345282539,1734137436593,-500.0,0.00021095,3]
[345282540,1734137436602,-500.0,0.00021095,3]
[345282541,1734137436611,-257.92163582,0.00021095,3]
[345282542,1734137436621,-500.0,0.00021095,3]
[345282543,1734137436631,-862.6,0.00021095,3]
[345282544,1734137436640,-500.0,0.00021095,3]
[345282545,1734137436649,-333.30098386,0.00021095,3]
[345282546,1734137436659,-500.0,0.00021095,3]
[345282547,1734137436669,-500.0,0.00021095,3]
[345282548,1734137436679,-500.0,0.00021095,3]
[345282549,1734137436689,-500.0,0.00021095,3]
[345282550,1734137436698,-500.0,0.00021095,3]
[345282551,1734137436707,-500.0,0.00021095,3]
[345282552,1734137436716,-500.0,0.00021095,3]
[345282553,1734137436725,-500.0,0.00021095,3]
[345282554,1734137436736,-500.0,0.00021095,3]
[345282555,1734137436746,-500.0,0.00021095,3]
[345282556,1734137436755,-500.0,0.00021095,3]
[345282557,1734137436765,-500.0,0.00021095,3]
[345282558,1734137436775,-500.0,0.00021095,3]
[345282559,1734137436786,-500.0,0.00021095,3]
[345282560,1734137436796,-500.0,0.00021095,3]
[345282561,1734137436805,-500.0,0.00021095,3]
[345282562,1734137436814,-500.0,0.00021095,3]
[345282563,1734137436826,-500.0,0.00021095,3]
[345282564,1734137436985,-500.0,0.00021095,3]
[345282565,1734137436995,-500.0,0.00021095,3]
[345282566,1734137437004,-500.0,0.00021095,3]
[345282567,1734137437014,-505.36913665,0.00021095,3]
[345282568,1734137437023,-500.0,0.00021095,3]
[345282569,1734137437032,-538.64,0.00021095,3]
[345282570,1734137437041,-500.0,0.00021095,3]
[345282571,1734137437051,-500.0,0.00021095,3]
[345282572,1734137437060,-500.0,0.00021095,3]
[345282573,1734137437070,-500.0,0.00021095,3]
[345282574,1734137437080,-500.0,0.00021095,3]
[345282575,1734137437089,-500.0,0.00021095,3]
[345282576,1734137437099,-531.3,0.00021095,3]
[345282577,1734137437108,-500.0,0.00021095,3]
[345282578,1734137437117,-551.96,0.00021095,3]
[345282579,1734137437128,-500.0,0.00021095,3]
[345282580,1734137437137,-500.0,0.00021095,3]
[345282581,1734137437147,-500.0,0.00021095,3]
[345282582,1734137437158,-500.0,0.00021095,3]
[345282583,1734137437168,-500.0,0.00021095,3]
[345282584,1734137437178,-500.0,0.00021095,3]
[345282585,1734137437187,-500.0,0.00021095,3]
[345282586,1734137437197,-530.0859498,0.00021095,3]
[345282587,1734137437207,-500.0,0.00021095,3]
[345282588,1734137437216,-500.0,0.00021095,3]
[345282589,1734137437226,-500.0,0.00021095,3]
[345282590,1734137437236,-500.0,0.00021095,3]
[345282591,1734137437245,-500.0,0.00021095,3]
[345282592,1734137437254,-500.0,0.00021095,3]
[345282593,1734137437264,-413.69,0.00021095,3]
[345282594,1734137437277,-1000.0,0.00021095,3]
[345282595,1734137437287,-500.0,0.00021095,3]
[345282596,1734137437296,-500.0,0.00021095,3]
[345282597,1734137437307,-500.0,0.00021095,3]
[345282598,1734137437319,-500.0,0.00021095,3]
[345282599,1734137437330,-621.61,0.00021095,3]
[345282600,1734137437340,-500.0,0.00021095,3]
[345282601,1734137437350,-500.0,0.00021095,3]
[345282602,1734137437365,-1403.08,0.00021095,3]
[345282603,1734137437381,-500.0,0.00021095,3]
[345282604,1734137437391,-500.0,0.00021095,3]
[345282605,1734137437400,-500.0,0.00021095,3]
[345282606,1734137437410,-500.0,0.00021095,3]
[345282607,1734137437419,-841.88,0.00021095,3]
[345282608,1734137437429,-500.0,0.00021095,3]
[345282609,1734137437439,-543.51,0.00021095,3]
[345282610,1734137437448,-500.0,0.00021095,3]
[345282611,1734137437458,-500.0,0.00021095,3]
[345282612,1734137437467,-500.0,0.00021095,3]
[345282613,1734137437477,-259.01069111,0.00021095,3]
[345282614,1734137437486,-500.0,0.00021095,3]
[345282615,1734137437496,-500.0,0.00021095,3]
[345282616,1734137437505,-500.0,0.00021095,3]
[345282617,1734137437515,-500.0,0.00021095,3]
[345282618,1734137437525,-475.35517971,0.00021095,3]
[345282619,1734137437534,-500.0,0.00021095,3]
[345282620,1734137437544,-500.0,0.00021095,3]
[345282621,1734137437554,-500.0,0.00021095,3]
[345282622,1734137437564,-500.0,0.00021095,3]
[345282623,1734137437575,-500.0,0.00021095,3]
[345282624,1734137437584,-500.0,0.00021095,3]
[345282625,1734137437594,-500.0,0.00021095,3]
[345282626,1734137437605,-500.0,0.00021095,3]
[345282627,1734137437615,-500.0,0.00021095,3]
[345282628,1734137437625,-500.0,0.00021095,3]
[345282629,1734137437637,-500.0,0.00021095,3]
[345282630,1734137437647,-500.0,0.00021095,3]
[345282631,1734137437657,-500.0,0.00021095,3]
[345282632,1734137437666,-500.0,0.00021095,3]
[345282633,1734137437677,-500.0,0.00021095,3]
[345282634,1734137437687,-500.0,0.00021095,3]
[345282635,1734137437697,-257.92459868,0.00021095,3]
[345282636,1734137437707,-535.07,0.00021095,3]
[345282637,1734137437717,-500.0,0.00021095,3]
[345282638,1734137437726,-198.92351467,0.00021095,3]
[345282639,1734137437736,-500.0,0.00021095,3]
[345282640,1734137437746,-500.0,0.00021095,3]
[345282641,1734137437756,-500.0,0.00021095,3]
[345282642,1734137437767,-500.0,0.00021095,3]
[345282643,1734137437776,-500.0,0.00021095,3]
[345282644,1734137437785,-500.0,0.00021095,3]
[345282645,1734137437795,-1137.79,0.00021095,3]
[345282646,1734137437805,-500.0,0.00021095,3]
[345282647,1734137437815,-500.0,0.00021095,3]
[345282648,1734137437826,-651.27,0.00021095,3]
[345282649,1734137437836,-84.68631455,0.00021095,3]
[345282650,1734137437883,-415.31368545,0.00021095,3]
[345282651,1734137437893,-500.0,0.00021095,3]
[345282652,1734137437903,-500.0,0.00021095,3]
[345282653,1734137437913,-1222.64,0.00021095,3]
[345282654,1734137437922,-500.0,0.00021095,3]
[345282655,1734137437931,-500.0,0.00021095,3]
[345282656,1734137437941,-500.0,0.00021095,3]
[345282657,1734137437951,-500.0,0.00021095,3]
[345282658,1734137437960,-831.48,0.00021095,3]
[345282659,1734137437970,-500.0,0.00021095,3]
[345282660,1734137437980,-625.73196438,0.00021095,3]
[345282661,1734137437990,-500.0,0.00021095,3]
[345282662,1734137438000,-500.0,0.00021095,3]
[345282663,1734137438010,-500.0,0.00021095,3]
[345282664,1734137438020,-500.87,0.00021095,3]
[345282665,1734137438029,-500.20933381,0.00021095,2]
[345282666,1734137438040,-500.0,0.00021095,3]
[345282667,1734137438050,-500.0,0.00021095,3]
[345282668,1734137438059,-500.0,0.00021095,3]
[345282669,1734137438068,-500.0,0.00021095,3]
[345282670,1734137438082,-500.0,0.00021095,3]
[345282671,1734137438097,-500.0,0.00021095,3]
[345282672,1734137438107,-500.0,0.00021095,3]
[345282673,1734137438116,-500.0,0.00021095,3]
[345282674,1734137438126,-500.0,0.00021095,3]
[345282675,1734137438136,-500.0,0.00021095,3]
[345282676,1734137438145,-500.0,0.00021095,3]
[345282677,1734137438155,-500.0,0.00021095,3]
[345282678,1734137438165,-500.0,0.00021095,3]
[345282679,1734137438174,-500.0,0.00021095,3]
[345282680,1734137438184,-500.0,0.00021095,3]
[345282681,1734137438193,-500.0,0.00021095,3]
[345282683,1734137438202,-500.0,0.00021095,3]
[345282684,1734137438211,-500.0,0.00021095,3]
[345282687,1734137438221,-500.0,0.00021095,3]
[345282688,1734137438230,-520.34137772,0.00021095,3]
[345282690,1734137438240,-500.0,0.00021095,3]
[345282692,1734137438251,-500.0,0.00021095,3]
[345282694,1734137438261,-1500.0,0.00021098,2]
[345282695,1734137438274,-1500.0,0.00021102,2]
[345282696,1734137438285,-150.0,0.0002111,2]
[345282697,1734137438295,-1086.95745466,0.00021112,2]
[345282698,1734137438307,-413.04254534,0.00021112,2]
[345282699,1734137438316,-37.61045466,0.00021113,2]
[345282700,1734137438340,-112.38954534,0.00021113,2]
[345282701,1734137438350,-1076.97745866,0.00021113,2]
[345282702,1734137438363,-423.02254134,0.00021113,2]
[345282703,1734137438373,-150.0,0.00021117,2]
[345282704,1734137438383,-1500.0,0.0002112,2]
[345282705,1734137438393,-200.0,0.00021149,2]
[345282706,1734137438403,-500.0,0.00021149,3]
[345282707,1734137438412,-500.0,0.00021149,3]
[345282708,1734137438422,-500.0,0.00021149,3]
[345282709,1734137438432,-500.0,0.00021149,3]
[345282710,1734137438442,-500.0,0.00021149,3]
[345282711,1734137438451,-435.1,0.00021149,3]
[345282712,1734137438461,-500.0,0.00021149,3]
[345282713,1734137438471,-500.0,0.00021149,3]
[345282714,1734137438481,-500.0,0.00021149,3]
[345282715,1734137438491,-500.0,0.00021149,3]
[345282716,1734137438500,-500.0,0.00021149,3]
[345282717,1734137438510,-500.0,0.00021149,3]
[345282718,1734137438519,-500.0,0.00021149,3]
[345282719,1734137438529,-1403.08,0.00021149,3]
[345282720,1734137438539,-500.0,0.00021149,3]
[345282721,1734137438550,-500.0,0.00021149,3]
[345282722,1734137438559,-500.0,0.00021149,3]
[345282723,1734137438568,-500.0,0.00021149,3]
[345282724,1734137438580,-500.0,0.00021149,3]
[345282725,1734137438590,-535.07,0.00021149,3]
[345282726,1734137438600,-651.27,0.00021149,3]
[345282727,1734137438610,-500.0,0.00021149,3]
[345282728,1734137438620,-526.91,0.00021149,3]
[345282729,1734137438630,-500.0,0.00021149,3]
[345282730,1734137438639,-500.0,0.00021149,3]
[345282731,1734137438648,-500.0,0.00021149,3]
[345282732,1734137438659,-166.39663466,0.0002115,2]
[345282733,1734137438668,-179.80760629,0.0002115,2]
[345282735,1734137438677,-4460.18892101,0.0002115,2]
[345282736,1734137438686,-173.2882403,0.0002115,2]
[345282738,1734137438695,-369.66283205,0.0002115,2]
[345282740,1734137438705,-846.23600062,0.0002115,2]
[345282742,1734137438714,-500.0,0.0002115,2]
[345282744,1734137438723,-16107.8522,0.0002115,2]
[345282746,1734137438733,-1000.0,0.0002115,2]
[345282748,1734137438742,-1500.0,0.00021151,2]
[345282750,1734137438755,-500.0,0.00021171,3]
[345282752,1734137438764,-500.0,0.00021171,3]
[345282754,1734137438774,-500.0,0.00021171,3]
[345282755,1734137438783,-1500.0,0.00021172,2]
[345282757,1734137438792,-3480.3506237,0.0002118,2]
[345282759,1734137438805,-6723.20293524,0.0002118,2]
[345282760,1734137438816,-33126.66215703,0.0002118,2]
[345282761,1734137438829,-358.14,0.00021206,3]
[345282762,1734137438838,-500.0,0.00021206,3]
[345282763,1734137438848,-500.0,0.00021206,3]
[345282764,1734137438857,-500.0,0.00021206,3]
[345282765,1734137438868,-241.31,0.00021206,3]
[345282766,1734137438878,-500.0,0.00021206,3]
[345282767,1734137438887,-500.0,0.00021206,3]
[345282768,1734137438897,-500.0,0.00021206,3]
[345282769,1734137438906,-862.6,0.00021206,3]
[345282770,1734137438915,-500.0,0.00021206,3]
[345282771,1734137438926,-500.0,0.00021206,3]
[345282772,1734137438935,-500.0,0.00021206,3]
[345282773,1734137438944,-500.0,0.00021206,3]
[345282774,1734137438953,-500.0,0.00021206,3]
[345282775,1734137438962,-500.0,0.00021206,3]
[345282776,1734137438972,-500.0,0.00021206,3]
[345282777,1734137438981,-561.62,0.00021206,3]
[345282778,1734137438991,-1137.79,0.00021206,3]
[345282779,1734137439000,-1222.64,0.00021206,3]
[345282780,1734137439010,-831.48,0.00021206,3]
[345282781,1734137439019,-500.0,0.00021206,3]
[345282782,1734137439029,-500.0,0.00021206,3]
[345282783,1734137439039,-267.84253021,0.00021207,2]
[345282784,1734137439048,-500.0,0.00021207,2]
[345282785,1734137439059,-500.0,0.00021207,2]
[345282786,1734137439070,-403.57,0.00021207,2]
[345282787,1734137439080,-500.0,0.00021207,2]
[345282788,1734137439090,-560.78,0.00021207,2]
[345282789,1734137439100,-500.0,0.00021207,2]
[345282790,1734137439109,-294.44,0.00021207,2]
[345282791,1734137439119,-500.0,0.00021207,2]
[345282792,1734137439128,-500.0,0.00021207,2]
[345282793,1734137439138,-500.0,0.00021207,2]
[345282794,1734137439147,-500.0,0.00021207,2]
[345282795,1734137439156,-389.8,0.00021207,2]
[345282796,1734137439166,-500.0,0.00021207,2]
[345282797,1734137439176,-500.0,0.00021207,2]
[345282798,1734137439185,-594.99,0.00021207,2]
[345282799,1734137439195,-500.0,0.00021207,2]
[345282800,1734137439204,-500.0,0.00021207,2]
[345282801,1734137439213,-874.76,0.00021207,2]
[345282802,1734137439223,-515.26,0.00021207,2]
[345282803,1734137439234,-500.0,0.00021207,2]
[345282804,1734137439243,-500.0,0.00021207,2]
[345282805,1734137439253,-500.0,0.00021207,2]
[345282806,1734137439263,-500.0,0.00021207,2]
[345282807,1734137439277,-500.0,0.00021207,2]
[345282808,1734137439286,-500.0,0.00021207,2]
[345282809,1734137439295,-500.0,0.00021207,2]
[345282810,1734137439306,-500.0,0.00021207,2]
[345282811,1734137439315,-500.0,0.00021207,2]
[345282812,1734137439366,-500.0,0.00021207,2]
[345282813,1734137439376,-500.0,0.00021207,2]
[345282814,1734137439385,-500.0,0.00021207,2]
[345282815,1734137439395,-500.0,0.00021207,2]
[345282816,1734137439404,-500.0,0.00021207,2]
[345282817,1734137439414,-500.0,0.00021207,2]
[345282818,1734137439424,-450.89822347,0.00021207,2]
[345282819,1734137439433,-500.0,0.00021207,2]
[345282820,1734137439442,-500.0,0.00021207,2]
[345282821,1734137439452,-150.0,0.0002123,2]
[345282822,1734137439461,-1027.0,0.00021233,2]
[345282823,1734137439470,-6565.65929329,0.00021233,2]
[345282824,1734137439645,-13509.34070671,0.00021233,2]
[345282825,1734137439654,-956.0,0.00021233,2]
[345282826,1734137439663,-150.0,0.00021235,2]
[345282827,1734137439674,-1500.0,0.00021235,2]
[345282828,1734137439683,-228.0,0.0002124,2]
[345282829,1734137439692,-200.0,0.0002124,4]
[345282830,1734137439702,-227.4855823,0.00021242,2]
[345282831,1734137439711,-431.22402389,0.00021245,3]
[345282832,1734137439720,-500.0,0.00021245,3]
[345282833,1734137439730,-500.0,0.00021245,3]
[345282834,1734137439740,-500.0,0.00021245,3]
[345282835,1734137439749,-300.121409,0.00021246,2]
[345282836,1734137439758,-243.121409,0.00021246,3]
[345282837,1734137439768,-300.121409,0.00021247,9]
[345282838,1734137439778,-300.121409,0.00021247,8]
[345282839,1734137439787,-300.121409,0.00021247,7]
[345282840,1734137439797,-300.121409,0.00021247,6]
[345282841,1734137439806,-300.121409,0.00021247,5]
[345282842,1734137439815,-300.121409,0.00021247,4]
[345282843,1734137439826,-300.121409,0.00021247,3]
[345282844,1734137439835,-300.121409,0.00021247,2]
[345282845,1734137439845,-300.121409,0.00021248,2]
[345282846,1734137439854,-300.121409,0.00021248,3]
[345282847,1734137439864,-300.121409,0.00021248,4]
[345282848,1734137439874,-300.121409,0.00021248,5]
[345282849,1734137439883,-300.121409,0.00021248,6]
[345282850,1734137439892,-300.121409,0.00021248,7]
[345282851,1734137439902,-300.121409,0.00021248,8]
[345282852,1734137439911,-300.121409,0.00021248,9]
[345282853,1734137439921,-500.0,0.00021248,2]
[345282854,1734137439931,-500.0,0.00021248,2]
[345282855,1734137439940,-537.62,0.00021248,2]
[345282856,1734137439949,-537.62,0.00021248,2]
[345282857,1734137439959,-178.40115388,0.00021248,3]
[345282858,1734137439968,-500.0,0.00021248,3]
[345282859,1734137439977,-207.41,0.00021248,3]
[345282860,1734137439987,-500.0,0.00021248,3]
[345282861,1734137439996,-500.0,0.00021248,3]
[345282862,1734137440006,-500.0,0.00021248,3]
[345282863,1734137440015,-500.0,0.00021248,3]
[345282864,1734137440026,-626.76,0.00021248,3]
[345282865,1734137440035,-626.76,0.00021248,3]
[345282866,1734137440044,-500.0,0.00021248,3]
[345282867,1734137440054,-162.16,0.00021248,3]
[345282868,1734137440064,-877.63,0.00021248,3]
[345282869,1734137440075,-877.63,0.00021248,3]
[345282870,1734137440084,-500.0,0.00021248,3]
[345282871,1734137440093,-500.0,0.00021248,3]
[345282872,1734137440104,-500.0,0.00021248,3]
[345282873,1734137440116,-500.0,0.00021248,3]
[345282874,1734137440127,-500.0,0.00021248,3]
[345282875,1734137440136,-500.0,0.00021248,3]
[345282876,1734137440146,-500.0,0.00021248,3]
[345282877,1734137440156,-500.0,0.00021248,3]
[345282878,1734137440166,-500.0,0.00021248,3]
[345282880,1734137440176,-500.0,0.00021248,3]
[345282882,1734137440186,-500.0,0.00021248,3]
[345282883,1734137440196,-500.0,0.00021248,3]
[345282884,1734137440206,-500.0,0.00021248,3]
[345282885,1734137440216,-500.0,0.00021248,3]
[345282886,1734137440226,-500.0,0.00021248,3]
[345282887,1734137440236,-500.0,0.00021248,3]
[345282888,1734137440246,-500.0,0.00021248,3]
[345282889,1734137440257,-158.0,0.00021248,3]
[345282890,1734137440269,-500.0,0.00021248,3]
[345282891,1734137440279,-500.0,0.00021248,3]
[345282892,1734137440288,-500.0,0.00021248,3]
[345282893,1734137440298,-500.0,0.00021248,3]
[345282894,1734137440308,-500.0,0.00021248,3]
[345282895,1734137440318,-500.0,0.00021248,3]
[345282896,1734137440331,-500.0,0.00021248,3]
[345282897,1734137440341,-1289.92,0.00021248,3]
[345282898,1734137440351,-1289.92,0.00021248,3]
[345282899,1734137440361,-500.0,0.00021248,3]
[345282900,1734137440371,-170.24,0.00021248,3]
[345282901,1734137440382,-500.0,0.00021248,3]
[345282902,1734137440392,-500.0,0.00021248,3]
[345282903,1734137440403,-500.0,0.00021248,3]
[345282904,1734137440413,-500.0,0.00021248,3]
[345282905,1734137440424,-500.0,0.00021248,3]
[345282906,1734137440436,-500.0,0.00021248,3]
[345282907,1734137440446,-500.0,0.00021248,3]
[345282908,1734137440456,-862.6,0.00021248,3]
[345282909,1734137440466,-500.0,0.00021248,3]
[345282910,1734137440477,-177.7,0.00021248,3]
[345282911,1734137440487,-500.0,0.00021248,3]
[345282912,1734137440497,-500.0,0.00021248,3]
[345282913,1734137440507,-500.0,0.00021248,3]
[345282914,1734137440517,-500.0,0.00021248,3]
[345282915,1734137440527,-500.0,0.00021248,3]
[345282916,1734137440538,-500.0,0.00021248,3]
[345282917,1734137440549,-609.38,0.00021248,3]
[345282918,1734137440558,-500.0,0.00021248,3]
[345282919,1734137440568,-500.0,0.00021248,3]
[345282920,1734137440580,-500.0,0.00021248,3]
[345282921,1734137440590,-500.0,0.00021248,3]
[345282922,1734137440600,-500.0,0.00021248,3]
[345282923,1734137440611,-500.0,0.00021248,3]
[345282924,1734137440621,-599.82,0.00021248,3]
[345282925,1734137440631,-500.0,0.00021248,3]
[345282926,1734137440642,-534.44,0.00021248,3]
[345282927,1734137440652,-538.64,0.00021248,3]
[345282928,1734137440662,-538.64,0.00021248,3]
[345282929,1734137440672,-500.0,0.00021248,3]
[345282930,1734137440682,-500.0,0.00021248,3]
[345282931,1734137440692,-500.0,0.00021248,3]
[345282932,1734137440703,-311.16,0.00021248,3]
[345282933,1734137440713,-208.9341041,0.00021248,3]
[345282934,1734137440723,-500.0,0.00021248,3]
[345282935,1734137440734,-500.0,0.00021248,3]
[345282936,1734137440744,-666.121409,0.00021248,2]
[345282937,1734137440754,-666.121409,0.00021248,3]
[345282938,1734137440764,-500.0,0.00021248,3]
[345282939,1734137440775,-500.0,0.00021248,3]
[345282940,1734137440785,-500.0,0.00021248,3]
[345282941,1734137440795,-500.0,0.00021248,3]
[345282942,1734137440805,-666.121409,0.00021248,4]
[345282943,1734137440815,-500.0,0.00021248,3]
[345282944,1734137440826,-500.0,0.00021248,3]
[345282945,1734137440837,-500.0,0.00021248,3]
[345282946,1734137440847,-666.121409,0.00021248,5]
[345282947,1734137440857,-666.121409,0.00021248,6]
[345282948,1734137440868,-500.0,0.00021248,3]
[345282949,1734137440879,-500.0,0.00021248,3]
[345282950,1734137440889,-666.121409,0.00021248,7]
[345282951,1734137440900,-500.0,0.00021248,3]
[345282952,1734137440910,-666.121409,0.00021248,8]
[345282953,1734137440920,-500.0,0.00021248,3]